Cogmind - Beta 13 @@@ ROGUE MODE // 2024.04.04 @ 04:51:49 Player: fippe Result: Destroyed by AL-7N1(R) with Subdweller Machine Gun Performance ------------- Evolutions (0) 0 Regions Visited (3) 600 Robots Destroyed (36) 180 Value Destroyed (620) 620 Prototype IDs (0) 0 Alien Tech Used (0) 0 Bonus (0) 0 TOTAL SCORE: 1400 Bonus ------- None Cogmind --------- Core Integrity 0/250 Matter 290/300 Energy 200/200 System Corruption 0% Temperature Cool (0) Movement Rolling (105) Location -10/Subcaves Parts ------- > --- POWER (1) -------- Subdweller Power Source > --- PROPULSION (2) --- Compact Wheel Subdweller Monowheel > --- UTILITY (2) ------ Medium Storage Unit Signal Interpreter > --- WEAPON (2) ------- Subdweller Machine Gun Battle Cannon > --- INVENTORY (10) --- High-capacity Matter Pod (200) Battle Rifle Barrage Gun Heavy Battle Rifle Rocket Launcher Flamer Shock Trap Shock Trap Shock Trap Peak State ------------ > --- POWER ------------ Subdweller Power Source > --- PROPULSION ------- Light Treads Subdweller Monowheel > --- UTILITY ---------- Medium Storage Unit Signal Interpreter > --- WEAPON ----------- Subdweller Machine Gun Battle Cannon > --- INVENTORY -------- Compact Wheel High-capacity Matter Pod EM Pulse Gun Battle Rifle Barrage Gun Heavy Battle Rifle Rocket Launcher Shock Trap Shock Trap Shock Trap [Rating: 12] Favorites ----------- Power Light Nuclear Core Engine Ion Engine Power Core Light Nuclear Core Propulsion Light Treads Treads Light Treads Wheel Compact Wheel Utility Medium Storage Unit Device Seismic Detector Storage Medium Storage Unit Processor Signal Interpreter Weapon Light Cannon Ballistic Gun Light Assault Rifle Ballistic Cannon Light Cannon Launcher Rocket Launcher Build | -11 -10 -10 -10 ------- Run | Yrd Mat Min Sub Slots Evolved . | . . . . Power . | . . . . Propulsion . | . . . . Utility . | . . . . Weapon . | . . . . Parts Attached 33 | 7 4 8 14 Power 6 | 1 1 1 3 Engine 5 | 1 1 . 3 Core 1 | . . 1 . Reactor . | . . . . Propulsion 7 | 2 . 1 4 Treads 4 | 2 . 1 1 Leg . | . . . . Wheel 3 | . . . 3 Hover . | . . . . Flight . | . . . . Utility 4 | 2 1 1 . Device 1 | 1 . . . Storage 2 | 1 1 . . Processor 1 | . . 1 . Hackware . | . . . . Protection . | . . . . Artifact . | . . . . Weapon 16 | 2 2 5 7 Energy Gun . | . . . . Energy Cannon . | . . . . Ballistic Gun 7 | 2 . 3 2 Ballistic Cannon 7 | . 2 1 4 Launcher 2 | . . 1 1 Special Weapon . | . . . . Impact Weapon . | . . . . Slashing Weapon . | . . . . Piercing Weapon . | . . . . Special Melee Weapon . | . . . . Unidentified Prototypes . | . . . . Parts Lost 6 | . . 2 4 Power 2 | . . . 2 Propulsion 3 | . . 1 2 Utility 1 | . . 1 . Weapon . | . . . . Highest Loss Streak 2 | . . 1 2 To Critical Strikes . | . . . . Average Slot Usage (%) 90 | . 100 96 84 Engine 6 | . 14 . 5 Core 3 | . . 13 . Treads 22 | . 28 27 17 Wheel 1 | . . . 3 Device 3 | . 14 . . Storage 14 | . 14 14 14 Processor 10 | . . 10 14 Ballistic Gun 13 | . 14 11 14 Ballistic Cannon 12 | . 14 15 10 Launcher 1 | . . . 2 Naked Turns . | . . . . Heaviest Build 23 | 12 22 21 23 Greatest Support 40 | 40 40 40 40 Greatest Overweight (x) 1 | . . . 1 Average Overweight (x) . | . . . . Largest Inventory Capacity 10 | 8 10 10 10 Average Capacity 9 | 7 9 10 10 Most Carried 10 | 4 10 10 10 Average Carried 8 | 2 8 9 9 Final Capacity 10 | 8 10 10 10 Final Carried 10 | 4 9 10 9 Class Distribution -------------------- 100% | Mutant Dominant Class ---------------- Mutant | -10/Materials Mutant | -10/Mines Mutant | -10/Subcaves Resources | -11 -10 -10 -10 ----------- Run | Yrd Mat Min Sub Matter Collected 1370 | 348 253 511 258 Remotely . | . . . . Salvage Created 1086 | 129 280 531 146 Parts 72 | 11 20 26 15 Haulers Intercepted 1 | . 1 . . Recyclers Shooed 3 | . 1 2 . Parts Field Recycled . | . . . . Retrieved Matter . | . . . . Parts Self-Destructed 12 | . . . 12 Prevented . | . . . . Kills | -11 -10 -10 -10 ------- Run | Yrd Mat Min Sub Combat Hostiles Destroyed 22 | . 7 10 5 Guns 6 | . 2 1 3 Cannons 16 | . 5 9 2 Classes Destroyed 9 | 3 4 . 2 Worker 3 | 1 . 2 . Tunneler 2 | 2 . . . Hauler 1 | . 1 . . Recycler 6 | 1 1 4 . Watcher 2 | . 2 . . Swarmer 11 | . 4 6 1 Grunt 8 | . 3 4 1 Sentry 1 | . . . 1 Subdweller 2 | . . . 2 Best Kill Streak 11 | 2 4 11 1 Combat Bots Only 4 | . 3 4 1 Max Kills in Single Turn 1 | 1 1 1 1 Gunslinging . | . . . . Exploded . | . . . . Melee . | . . . . Uniques/NPCs Destroyed . | . . . . Combat | -11 -10 -10 -10 -------- Run | Yrd Mat Min Sub Hostile Shots Fired 119 | . 46 43 30 Missed 24 | . 12 7 5 Damage Taken 1323 | . 315 358 650 Core 251 | . 29 68 154 Absorbed by Shields . | . . . . Core Remaining (%) 100 | 100 . . . Volleys Fired 99 | 18 26 34 21 Largest 2 | 2 2 2 2 Hottest 70 | 40 70 70 70 Shots Fired 196 | 36 52 68 40 Gun 85 | 36 24 3 22 Cannon 108 | . 28 64 16 Launcher 3 | . . 1 2 Special . | . . . . Kinetic 193 | 36 52 67 38 Thermal . | . . . . Explosive 3 | . . 1 2 Electromagnetic . | . . . . Robot Hit Streak 12 | 6 10 12 11 Robot Miss Streak 7 | 2 7 3 3 Penetration Max . | . . . . Secondary Targets 1 | . . . 1 Max Gunslinging Chain 1 | . . . 1 Shots Hit Robots 110 | 23 32 37 18 Core Hits 47 | 7 15 19 6 Critical Kills . | . . . . Critical Parts Destroyed . | . . . . Critical Strikes 2 | . 1 1 . Blast 2 | . 1 1 . Melee Attacks . | . . . . Impact . | . . . . Slashing . | . . . . Piercing . | . . . . Sneak Attacks . | . . . . Combat Hostiles . | . . . . Follow-up Attacks . | . . . . Damage Inflicted 1731 | 227 442 652 410 Guns 589 | 227 136 15 211 Cannons 1027 | . 306 637 84 Explosions 115 | . . . 115 Melee . | . . . . Ramming . | . . . . Kinetic 1616 | 227 442 652 295 Thermal . | . . . . Explosive 115 | . . . 115 Electromagnetic . | . . . . Impact . | . . . . Slashing . | . . . . Piercing . | . . . . Highest Corruption . | . . . . Average Corruption . | . . . . Corruption Purged . | . . . . Corruption Blocked . | . . . . Overload Shots . | . . . . Overflow Damage 6 | . . 6 . Projectiles 6 | . . 6 . Explosions . | . . . . Melee . | . . . . Knockbacks 12 | . 4 7 1 Impact . | . . . . Kinetic 11 | . 4 6 1 Secondary 1 | . . 1 . Self-Inflicted Damage . | . . . . Shots . | . . . . Rammed . | . . . . Targets Rammed . | . . . . Kicked . | . . . . Crushed . | . . . . Highest Temperature 182 | . 96 182 . Average Temperature 61 | . 34 76 . Received Heat Transfer 243 | . 78 114 51 Siege Activations . | . . . . Robots Corrupted . | . . . . Combat Hostiles . | . . . . Parts Fried . | . . . . Impact Corruptions . | . . . . Robots Melted . | . . . . Combat Hostiles . | . . . . Parts Melted . | . . . . Heat Transferred . | . . . . Parts Sabotaged . | . . . . Parts Stolen . | . . . . Parts Stripped . | . . . . Power Chain Reactions . | . . . . Alert | -11 -10 -10 -10 ------- Run | Yrd Mat Min Sub Peak Influence 185 | 20 127 185 . Initial 13 | . 13 7 . Average 72 | 8 84 75 . Maximum Alert Level . | . . . . Low Security (%) 100 | 100 100 100 . Level 1 . | . . . . Level 2 . | . . . . Level 3 . | . . . . Level 4 . | . . . . Level 5 . | . . . . High Security . | . . . . Max Security . | . . . . Squads Dispatched 1 | . 1 . . Investigation 1 | . 1 . . Extermination . | . . . . Reinforcement . | . . . . Assault . | . . . . Garrison . | . . . . Intercept . | . . . . Searches Triggered . | . . . . Construction Impeded . | . . . . Haulers Reinforced . | . . . . Active Scanning Responses . | . . . . Cargo Convoy Interrupts . | . . . . Stealth | -11 -10 -10 -10 --------- Run | Yrd Mat Min Sub Distress Signals . | . . . . Communications Jammed . | . . . . Distress Signals . | . . . . Times Spotted 34 | . 15 12 7 Peak Tracking Total 4 | . 4 4 2 Tactical Retreats 3 | . 1 2 . Traps | -11 -10 -10 -10 ------- Run | Yrd Mat Min Sub Traps Triggered 1 | . . . 1 Indirectly . | . . . . Trap Hack Attempts . | . . . . Triggered . | . . . . Disarmed . | . . . . Reprogrammed . | . . . . Reused . | . . . . Traps Extracted . | . . . . Installed . | . . . . Triggered . | . . . . Most Traps Carried 3 | . . 3 3 Machines | -11 -10 -10 -10 ---------- Run | Yrd Mat Min Sub Machines Disabled . | . . . . Max in Single Turn . | . . . . Machines Repaired . | . . . . Machines Dismantled . | . . . . Machines Sabotaged . | . . . . Overloaded Fab Kills . | . . . . Hacking | -11 -10 -10 -10 --------- Run | Yrd Mat Min Sub Machines Accessed 4 | . 3 . 1 Terminals 3 | . 3 . . Fabricators . | . . . . Repair Stations . | . . . . Recycling Units . | . . . . Scanalyzers . | . . . . Garrison Access . | . . . . Total Hacks 12 | . 11 . 1 Successful 5 | . 4 . 1 Failed 7 | . 7 . . Catastrophic . | . . . . Database Lockouts . | . . . . Manual 11 | . 11 . . Terminals 11 | . 11 . . Fabricators . | . . . . Repair Stations . | . . . . Recycling Units . | . . . . Scanalyzers . | . . . . Garrison Access . | . . . . Terminal Hacks 3 | . 2 . 1 Record 1 | . . . 1 Robot Analysis 1 | . 1 . . Level Access Points 1 | . 1 . . Fabricator Hacks . | . . . . Repair Station Hacks . | . . . . Recycling Unit Hacks . | . . . . Scanalyzer . | . . . . Garrison Access Hacks . | . . . . Unauthorized Hacks 2 | . 2 . . Terminals 2 | . 2 . . Botnet 2 | . 2 . . Fabricators . | . . . . Repair Stations . | . . . . Recycling Units . | . . . . Scanalyzers . | . . . . Garrison Access . | . . . . Data Cores Recovered . | . . . . Used . | . . . . Hacking Detections 3 | . 3 . . Full Trace Events 1 | . 1 . . Feedback Events . | . . . . Feedback Blocked . | . . . . Robot Schematics Acquired . | . . . . Robots Built . | . . . . Authchips . | . . . . Time . | . . . . Total Robot Build Rating . | . . . . Part Schematics Acquired . | . . . . Parts Built . | . . . . Authchips . | . . . . Time . | . . . . Total Part Build Rating . | . . . . Parts Repaired . | . . . . Time . | . . . . Parts Recycled . | . . . . Recycled Matter . | . . . . Retrieved Matter . | . . . . Retrieved Components . | . . . . Parts Scanalyzed . | . . . . Part Schematics Acquired . | . . . . Parts Damaged . | . . . . Bothacking | -11 -10 -10 -10 ------------ Run | Yrd Mat Min Sub Used RIF Installer . | . . . . Robots Hacked . | . . . . Non-combat . | . . . . Combat . | . . . . Robot Hacks Applied . | . . . . Relay Couplers Released . | . . . . Fabnet Peak Effective % . | . . . . Robots Rewired . | . . . . Allies Hacked . | . . . . Hacks Repelled . | . . . . Allies | -11 -10 -10 -10 -------- Run | Yrd Mat Min Sub Total Allies . | . . . . Largest Group . | . . . . Highest-Rated Group . | . . . . Highest-Rated Ally . | . . . . Total Orders . | . . . . Ally Attacks . | . . . . Total Damage . | . . . . Kills . | . . . . Allies Corrupted . | . . . . Allies Melted . | . . . . Intel | -11 -10 -10 -10 ------- Run | Yrd Mat Min Sub Robot Analysis Total 1 | . 1 . . Derelict Logs Recovered 5 | . . 3 2 Drone Launches . | . . . . Drone Recoveries . | . . . . Exploration | -11 -10 -10 -10 ------------- Run | Yrd Mat Min Sub Turns Passed 3801 | 176 805 951 1869 Spaces Moved 2010 | 74 384 506 1046 Core 7 | 7 . . . Treads 1909 | 67 384 506 952 Legs . | . . . . Wheels 94 | . . . 94 Hover . | . . . . Flight . | . . . . Fastest Speed 50 | 50 160 160 105 Average Speed 162 | 149 160 160 165 Slowest Speed 240 | 160 160 160 240 Overloaded Moves . | . . . . Propulsion Burnouts . | . . . . Robots Hopped . | . . . . Cave-ins Triggered . | . . . . Exploration Rate (%) 56 | 5 55 89 75 Regions Visited 3 Branch Regions 2 Pre-discovered Areas 1 | . . . 1 Known Exits Taken 1 | . . 1 . Unknown Exits Taken 2 | 1 1 . . Scrap Searched 8 | . . 1 7 Spaces Dug . | . . . . Terrain Destroyed 35 | . . 13 22 Melee . | . . . . Projectile . | . . . . AOE 35 | . . 13 22 Terrain Rammed . | . . . . Walls Destroyed . | . . . . Machines Disabled . | . . . . Actions | -11 -10 -10 -10 --------- Run | Yrd Mat Min Sub Total 2358 | 104 528 579 1147 Wait 181 | . 106 25 50 Move 2007 | 73 383 505 1046 Hop . | . . . . Pick Up 21 | 5 6 4 6 Fast Attach 12 | 7 . 1 4 Attach 8 | . . 3 5 Detach 2 | . . 1 1 Swap 13 | . 4 4 5 Drop 15 | 1 3 2 9 Fire 99 | 18 26 34 21 Melee . | . . . . Ram . | . . . . Kick . | . . . . Crush . | . . . . Escape Stasis . | . . . . Rewire . | . . . . Trap . | . . . . Miscellaneous . | . . . . Route ------- -11/Scrapyard -10/Materials (discovered 4 exits: *Mat x3 / [*Min]) -10/Mines (discovered 2 exits: *Mat / *Sub) -10/Subcaves (discovered 1 exit: *Mat) History --------- Turn | Location | Event 11 | -11/Scrapyard | Discovered new exit (range 15) 177 | -11/Scrapyard | Entered Materials 311 | -10/Materials | Build established: Mutant 581 | -10/Materials | Discovered new exit (range 6) 585 | -10/Materials | Identified exit to Materials 959 | -10/Materials | Discovered new exit (range 9) 982 | -10/Materials | Entered Mines 991 | -10/Mines | Discovered exit to Materials (range 14) 1203 | -10/Mines | Found a hidden stash of uninstalled traps 1501 | -10/Mines | Received a Rocket Launcher from a helpful Derelict 1719 | -10/Mines | Excavation squad dispatched 1719 | -10/Mines | A large section of the Mines collapsed 1924 | -10/Mines | Discovered new exit (range 6) 1932 | -10/Mines | Identified exit to Subcaves 1933 | -10/Mines | Entered Subcaves 1946 | -10/Subcaves | Learned Materials stockpile data 2410 | -10/Subcaves | Core integrity fell below 50% 2871 | -10/Subcaves | Shifting Twisted Machinery released Sub. Machine Gun 2873 | -10/Subcaves | Shifting Twisted Machinery released Sub. Beam Cannon 3189 | -10/Subcaves | Discovered new exit (range 5) 3194 | -10/Subcaves | Identified exit to Materials 3561 | -10/Subcaves | Visited Clippyterm 3710 | -10/Subcaves | Core integrity fell below 20% 3802 | -10/Subcaves | Destroyed by AL-7N1(R) with Subdweller Machine Gun Last Messages --------------- 03566_ Connecting with Clippyterm... >>Record! "Clippyterm" Welcome to Clippyterm v0.53, my misguided attempt to resurrect an ancient AI. I give up. There must be something fundamentally wrong with the algorithm, because no matter how much data I collect to feed it, half the time it still manages to suggest unhelpful sample queries and responses. --DD-NU8 03653_ N2-EER(R): "SUBMAD!" 03676_ N2-EER(R) knocked back. 03679_ N2-EER(R) destroyed. 03684_ Acquired 3 matter. 03687_ Acquired Sub. Monowheel. 03688_ Acquired 37 matter. 03691_ Acquired Sub. Power Source. 03697_ Acquired 23 matter. 03706_ Dropped EM Pulse Gun. 03707_ Acquired Flamer. 03779_ Lgt. Treads destroyed. Map ----- +----------------------------------------------------+ | ## ##?## ### #### ##?????????????????? | | ## ### # ##??# ##????????????????? | | # ### < #???# #????????????????? | | #### ##??# #????????????????? | | ## ### #?## #????????????????? | | ### ## #?# ##???????????????? | | # ## ## ### ### #???????????????? | | ### ## ## #### #???????????????? | | ??## ## #?# #####???????????????? | | ???# ## ## #???????????????????? | | ??? # ### ### #???????????????????? | | ??### # #?# ##?# "??????????????????? | | ????## ####### #####??? ""#?????????????????? | | ?????# #?????# #?????# """" #????????????????? | | ?????####?????# #?????###"""" ???????????????? | | ??????????????## ##?????###"""" #??????????????? | | ???????????????# ##???## """""? ##??????????????? | | ???????????????## ##### """????????????????????? | | ????????????????##" " ""#???###???????????????? | | ?????????????????### """"""#### ##??????????????? | | ???????????????????#" ""#?#"" ##?????????????? | | ???????????????????####"" ### " #?????????????? | | ??????????????????????##" "## " #?????????????? | | ?????????????????????### """ " #?????????????? | | ?????????????????##### " " #?????????????? | | ????????????????## @ "## #?????????????? | | ???????????????## "##????????????????? | | ?????????????### #????????????????? | | ????????????## #????????????????? | | ???????????## ###??????????????? | | ???????????# #### ##?????????????? | | ??????????## #??# #?????????????? | | ??????????# ### #### #?????????????? | | ????????????# #??# ##?????????????? | | ????????????## #??## ##??????????????? | | ?????????????# R #???## #???????????????? | | ?????????????# R## ##??########???????????????? | | ?????????????# ######### ###?????????????????? | | ?????????????# #???## ##????????????????? | | ?????????????# ###### ###??????????????? | | ?????????????# ### ## #??????????????? | | ?????????????# #??????????????? | | ?????????????# ### ##??????????????? | | ?????????????## #?# #???????????????? | | ??????????????# #?# #???????????????? | | ??????????????# ##?# #???????????????? | | ??????????????# ##??# #???????????????? | | ?????????????## ##### #???????????????? | | ???????????### ### ## #???????????????? | | ???????????# ### #???????????????? | +----------------------------------------------------+ Best States ------------- Heat Dissipation 25 Energy Generation 15 Energy Capacity 250 Matter Stores 300 Matter Capacity 300 Sight Range 16 Terrain Scan Density 10 Evasion (%) 40 Recoil Reduction 2 Item Schematics ----------------- None Robot Schematics ------------------ None Fabricated ------------ Nothing Alien Tech Used ----------------- None Achievements -------------- None Challenges ------------ None Game ------ Seed MultitargetingHelicalDevice Manual? 0 Play Time 00:42:40 Cumulative 16.5 hours Start 2024.04.03 @ 22:27:57 End 2024.04.04 @ 04:51:49 Sessions 1 Manual Loads 0 Difficulty Rogue Special Mode None Game No. 21 Rogue 21 Adventurer 0 Explorer 0 Win Type - Total 0 Types 0/0/0/0/0/0/0/0/0 Lore% 19 Gallery% 22 Achievement% 21 Wizard Run 0 Options --------- Layout 1 ASCII 0 Keyboard 0 Movement Mouse Keybinds 0 Fullscreen 1 Font 24/Smallcaps Map View 50x35 Zoom Use 0% Tactical HUD 1 Map Filters NONE Filters NONE Steam 1 RUN: c4927305-b668-419f-84a5-716ebd2fd377